bitfinex/quotes_SOLUSD_20241001
["timestamp","ask_amount","ask_price","bid_price","bid_amount"]
[1727801068405,6.7782,147.53,147.49,23.776884]
[1727801068707,6.7774,147.55,147.51,23.776884]
[1727801068890,0.2118943,147.56,147.51,23.776884]
[1727801069292,6.7777,147.55,147.49,6.7797]
[1727801069613,6.7781,147.54,147.5,23.776884]
[1727801070095,0.2118943,147.56,147.49,23.776884]
[1727801070409,6.7777,147.55,147.51,6.7791]
[1727801070586,17.1548943,147.56,147.49,15.4145]
[1727801070787,17.1548943,147.56,147.49,22.1945]
[1727801070788,6.7778,147.54,147.49,22.1945]
[1727801071004,6.7778,147.54,147.49,15.4145]
[1727801071204,0.2118943,147.56,147.49,15.4145]
[1727801071402,6.7792,147.51,147.49,15.4145]
[1727801071812,0.2118943,147.56,147.49,15.4145]
[1727801072405,6.7783,147.53,147.49,15.4145]
[1727801072609,6.7783,147.53,147.5,23.776884]
[1727801072820,0.2118943,147.56,147.49,15.4145]
[1727801072821,6.7796,147.5,147.49,15.4145]
[1727801072987,6.7788,147.52,147.49,15.4145]
[1727801073187,6.7795,147.51,147.49,15.4145]
[1727801073809,6.7796,147.5,147.49,15.4145]
[1727801073990,16.9462,147.53,147.43,15.7399]
[1727801073991,6.7821,147.45,147.43,15.7399]
[1727801074188,16.9489,147.51,147.43,15.7399]
[1727801074390,6.7815,147.46,147.43,15.7399]
[1727801075800,6.7815,147.46,147.44,23.776884]
[1727801076010,16.9489,147.51,147.43,15.7399]
[1727801076321,6.7806,147.48,147.43,15.7399]
[1727801076495,0.2118943,147.56,147.44,6.7823]
[1727801076700,6.7802,147.49,147.44,23.7378]
[1727801076898,6.7793,147.51,147.47,6.7809]
[1727801077227,6.7793,147.51,147.43,15.7399]
[1727801077389,17.1543943,147.56,147.47,23.776884]
[1727801077595,17.1543943,147.56,147.47,30.557384]
[1727801077913,6.7778,147.54,147.51,23.776884]
[1727801078298,6.7778,147.54,147.5,23.776884]
[1727801078812,0.2118943,147.56,147.5,23.776884]
[1727801079028,6.7797,147.5,147.46,6.7814]
[1727801079316,6.7797,147.5,147.46,23.776884]
[1727801080022,6.7801,147.49,147.46,23.776884]
[1727801080197,16.9438,147.55,147.46,23.776884]
[1727801080198,6.7797,147.5,147.46,23.776884]
[1727801080394,16.9464,147.53,147.44,6.7823]
[1727801080607,6.7809,147.48,147.43,15.7399]
[1727801080794,6.7805,147.49,147.44,6.7821]
[1727801080998,16.9484,147.51,147.43,15.7399]
[1727801081212,6.7818,147.46,147.43,15.7399]
[1727801081595,16.951,147.49,147.43,15.7399]
[1727801081811,6.782,147.45,147.43,15.7399]
[1727801082719,6.7824,147.44,147.43,15.7399]
[1727801083808,33.8919,147.53,147.43,15.7399]
[1727801084010,6.7814,147.47,147.43,15.7399]
[1727801084217,16.9495,147.5,147.43,15.7399]
[1727801084218,6.7816,147.46,147.43,15.7399]
[1727801084604,6.781,147.47,147.44,23.776884]
[1727801085232,6.7823,147.45,147.43,15.7399]
[1727801085603,16.9495,147.5,147.43,15.7399]
[1727801085999,6.7824,147.44,147.43,15.7399]
[1727801086518,6.7824,147.44,147.39,16.9615]
[1727801086519,16.9518,147.48,147.37,15.0621]
[1727801086721,6.7841,147.41,147.37,15.0621]
[1727801087020,6.7841,147.41,147.37,21.8475]
[1727801087603,33.9075,147.46,147.37,15.0621]
[1727801087917,33.9004,147.5,147.37,15.0621]
[1727801088424,6.7816,147.46,147.41,6.7837]
[1727801088633,16.9485,147.51,147.41,16.9589]
[1727801088842,6.781,147.47,147.43,6.7827]
[1727801089135,16.9451,147.54,147.44,23.776884]
[1727801089515,6.7796,147.5,147.46,29.803784]
[1727801090138,16.9473,147.52,147.46,6.0269]
[1727801090446,6.7805,147.49,147.46,6.0269]
[1727801090623,6.781,147.47,147.46,6.0269]
[1727801091234,6.7818,147.46,147.42,30.560084]
[1727801091539,6.7814,147.47,147.42,30.560084]
[1727801091747,6.7814,147.47,147.44,23.776884]
[1727801091964,6.782,147.45,147.41,6.1141]
[1727801092281,6.7811,147.47,147.42,30.559884]
[1727801092621,16.9497,147.5,147.42,23.776884]
[1727801092934,6.7832,147.43,147.41,6.1141]
[1727801093136,16.9544,147.46,147.37,38.4298]
[1727801093323,6.7834,147.42,147.37,45.215]
[1727801093827,16.9544,147.46,147.37,21.466]
[1727801094233,33.9011,147.49,147.37,21.466]
[1727801094234,6.7825,147.44,147.39,6.7843]
[1727801094737,6.7825,147.44,147.38,16.9622]
[1727801094936,5.82,147.51,147.4,16.9597]
[1727801094937,36.57887622,147.51,147.4,16.9597]
[1727801095145,33.8917,147.53,147.4,16.9597]
[1727801095146,6.7812,147.47,147.42,6.7832]
[1727801095642,16.9472,147.52,147.43,23.776884]
[1727801095840,6.78,147.5,147.45,6.7819]
[1727801096030,6.7802,147.49,147.44,6.7822]
[1727801096232,6.7802,147.49,147.45,23.776884]
[1727801097040,6.7797,147.5,147.45,30.558584]
[1727801097432,16.9438,147.55,147.48,23.776884]
[1727801097639,21.06886819,147.55,147.5,23.776884]
[1727801097842,0.2118943,147.56,147.5,30.556384]
[1727801097843,6.7782,147.54,147.5,30.556384]
[1727801098147,6.7777,147.55,147.5,30.556284]
[1727801098344,0.2118943,147.56,147.47,22.2436]
[1727801098654,6.7792,147.51,147.48,23.776884]
[1727801098833,55.59243461,147.59,147.48,23.776884]
[1727801098834,72.53163461,147.59,147.48,23.776884]
[1727801099150,6.7774,147.55,147.5,30.556084]
[1727801099332,72.53163461,147.59,147.49,23.776884]
[1727801099527,6.7777,147.55,147.49,23.776884]
[1727801099767,72.53163461,147.59,147.49,23.776884]
[1727801099942,32.44920803,147.59,147.51,6.7791]
[1727801100249,0.50193,147.6,147.48,47.03128055]
[1727801100430,0.50193,147.6,147.52,23.776884]
[1727801100631,0.50193,147.6,147.55,23.776884]
[1727801100943,0.50193,147.6,147.52,6.7786]
[1727801101144,0.50193,147.6,147.53,40.721684]
[1727801101447,0.50193,147.6,147.55,40.719484]
[1727801101661,0.50193,147.6,147.55,47.496384]
[1727801101826,0.50193,147.6,147.55,40.719484]
[1727801102023,0.50193,147.6,147.58,6.7755]
[1727801102223,0.50193,147.6,147.59,6.7755]
[1727801102428,0.50193,147.6,147.58,6.7756]
[1727801102737,7.27703,147.6,147.57,22.5313]
[1727801102948,0.50193,147.6,147.58,23.776884]
[1727801103127,0.50193,147.6,147.59,6.7755]
[1727801103852,0.50193,147.6,147.59,31.90722777]
[1727801104158,0.50193,147.6,147.59,30.552384]
[1727801104854,1.15593819,147.74,147.6,23.776884]
[1727801105033,6.7696,147.72,147.67,6.7717]
[1727801105337,6.7696,147.72,147.68,6.7713]
[1727801105658,0.8451499,147.75,147.65,16.9311]
[1727801105953,6.7724,147.66,147.62,16.9348]
[1727801106169,28.82222059,147.74,147.6,6.775]
[1727801106455,16.9254,147.71,147.59,16.9387]
[1727801106633,8.49222059,147.74,147.58,47.03128055]
[1727801106835,6.771,147.69,147.64,6.7728]
[1727801107046,34.6872499,147.75,147.59,20.0]
[1727801107047,0.8451499,147.75,147.59,20.0]
[1727801107311,0.8451499,147.75,147.65,16.931]
[1727801107552,17.7662499,147.75,147.66,6.7719]
[1727801107729,6.7718,147.67,147.62,16.935]
[1727801107936,6.7724,147.66,147.62,16.935]
[1727801108162,16.9257,147.71,147.62,16.935]
[1727801108360,6.7701,147.71,147.66,6.7722]
[1727801108736,6.7723,147.66,147.61,16.9361]
[1727801109051,55.0165499,147.75,147.56,33.8843]
[1727801109052,6.7733,147.64,147.58,16.9396]
[1727801109240,5.82,147.71,147.56,33.8843]
[1727801109847,6.7719,147.67,147.62,6.774]
[1727801110061,16.9253,147.71,147.63,8.12802235]
[1727801110261,40.5065499,147.75,147.57,69.56258055]
[1727801110262,6.7705,147.7,147.65,6.7727]
[1727801110448,6.7699,147.72,147.6,80.90588055]
[1727801110650,6.7691,147.73,147.66,16.93]
[1727801110955,0.8451499,147.75,147.6,80.90588055]
[1727801110956,7.6133499,147.75,147.7,6.7704]
[1727801111161,7.6133499,147.75,147.68,16.9273]
[1727801111162,0.8451499,147.75,147.71,8.1237748]
[1727801111349,7.6133499,147.75,147.71,6.7699]
[1727801111555,0.8451499,147.75,147.71,23.776884]
[1727801111761,7.6134499,147.75,147.71,23.776884]
[1727801111955,6.7688,147.74,147.7,16.9254]
[1727801112146,6.7703,147.71,147.67,21.1998]
[1727801112349,6.771,147.69,147.67,15.1463]
[1727801112742,6.7705,147.7,147.67,15.1463]
[1727801112977,16.9248,147.72,147.63,16.9337]
[1727801113264,16.9248,147.72,147.62,28.8296]
[1727801113466,60.8363499,147.75,147.62,22.0556]
[1727801113664,6.7736,147.63,147.62,15.4525]
[1727801113968,16.929,147.68,147.62,15.4525]
[1727801114172,6.7733,147.64,147.62,15.4525]
[1727801114468,6.7727,147.66,147.62,15.4525]
[1727801114780,6.7736,147.63,147.62,15.4525]
[1727801115064,16.9281,147.69,147.59,16.9381]
[1727801115251,16.9243,147.72,147.64,6.773]
[1727801115651,16.9243,147.72,147.63,23.7071]
[1727801115870,23.5855499,147.75,147.65,16.9312]
[1727801116171,6.7695,147.72,147.68,6.7712]
[1727801116665,7.6133499,147.75,147.69,25.13092319]
[1727801116869,0.8451499,147.75,147.73,6.769]
[1727801117667,0.8451499,147.75,147.7,15.583]
[1727801117873,6.7688,147.74,147.7,15.583]
[1727801118164,0.8451499,147.75,147.71,1.3537976]
[1727801118367,0.8451499,147.75,147.7,15.583]
[1727801118570,7.6137499,147.75,147.7,22.3534]
[1727801118772,0.8451499,147.75,147.7,15.583]
[1727801118955,0.8451499,147.75,147.71,16.9243]
[1727801119464,0.8451499,147.75,147.71,23.6943]
[1727801119647,0.8451499,147.75,147.71,16.9243]
[1727801119848,0.8451499,147.75,147.72,23.776884]
[1727801120048,0.8451499,147.75,147.71,16.9243]
[1727801120247,6.7696,147.72,147.7,15.583]
[1727801120770,0.8451499,147.75,147.7,15.583]
[1727801120974,0.8451499,147.75,147.71,6.77]
[1727801121155,0.8451499,147.75,147.7,15.583]
[1727801121475,6.7692,147.73,147.7,15.583]
[1727801121651,6.7686,147.74,147.7,15.583]
[1727801121854,6.7686,147.74,147.7,16.93685416]
[1727801122067,6.7686,147.74,147.7,22.3534]
[1727801122579,0.8451499,147.75,147.7,15.583]
[1727801123058,6.7691,147.73,147.7,15.583]
[1727801123255,0.8451499,147.75,147.7,15.583]
[1727801123467,0.8451499,147.75,147.66,6.0481]
[1727801123654,16.9233,147.73,147.66,6.0481]
[1727801123974,0.8451499,147.75,147.65,15.4211]
[1727801123975,6.7723,147.66,147.65,15.4211]
[1727801124271,6.7736,147.63,147.62,6.1818]
[1727801124574,16.9278,147.69,147.62,6.1818]
[1727801124575,6.7732,147.64,147.62,6.1818]
[1727801124762,16.9278,147.69,147.62,6.1818]
[1727801124955,6.7722,147.67,147.62,12.9557]
[1727801125163,6.7731,147.65,147.62,6.1818]
[1727801125478,6.7745,147.62,147.59,15.0923]
[1727801125859,20.0,147.7,147.59,15.0923]
[1727801125860,6.775,147.6,147.59,15.0923]
[1727801126059,16.9338,147.64,147.54,39.0274]
[1727801126264,6.7746,147.61,147.56,6.7768]
[1727801126475,6.7732,147.64,147.59,6.7755]
[1727801126973,6.7732,147.64,147.6,6.775]
[1727801127156,20.0,147.7,147.58,16.9391]
[1727801127360,6.7728,147.65,147.59,1.35467654]
[1727801127676,6.7738,147.63,147.58,23.715]
[1727801127875,6.7741,147.62,147.58,16.9391]
[1727801128978,6.7756,147.59,147.55,16.9432]
[1727801129186,16.9337,147.64,147.54,22.0834]
[1727801129384,6.7764,147.58,147.54,22.0834]
[1727801129555,6.7766,147.57,147.54,22.0834]
[1727801129756,20.0,147.66,147.54,39.027]
[1727801129963,16.9323,147.65,147.54,39.027]
[1727801130174,6.7741,147.62,147.57,6.7763]
[1727801130458,16.9286,147.68,147.58,16.9392]
[1727801130667,16.9286,147.68,147.59,1.35473909]
[1727801130865,6.7724,147.66,147.61,6.7745]
[1727801131064,33.8555,147.69,147.54,22.0834]
[1727801131264,6.7733,147.64,147.57,16.9405]
[1727801131557,6.7742,147.62,147.57,16.9405]
[1727801131762,6.7742,147.62,147.57,23.7169]
[1727801131977,6.7742,147.62,147.58,6.7759]
[1727801132185,6.7742,147.62,147.57,23.7168]
[1727801132486,16.9326,147.65,147.55,23.776884]
[1727801132686,6.7751,147.6,147.55,30.554184]
[1727801132871,20.0,147.64,147.54,39.0274]
[1727801133186,6.7769,147.56,147.54,22.0834]
[1727801133377,6.7773,147.55,147.54,15.9424]
[1727801133557,6.7782,147.54,147.49,21.8668]
[1727801133891,2.0,147.67,147.49,21.8668]
[1727801133892,4.84160952,147.68,147.56,6.7767]
[1727801134059,42.0880377,147.69,147.49,68.89808055]
[1727801134060,6.7743,147.62,147.57,23.7166]
[1727801134260,33.99457964,147.69,147.54,16.944]
[1727801134679,16.9348,147.63,147.51,20.0]
[1727801134883,33.8643,147.65,147.51,16.9474]
[1727801135276,6.7769,147.56,147.51,6.7791]
[1727801135576,20.0,147.64,147.5,47.03128055]
[1727801135765,6.7736,147.64,147.59,6.7751]
[1727801135962,16.9284,147.69,147.59,1.35475744]
[1727801136183,6.771,147.69,147.63,16.9334]
[1727801136386,17.06277964,147.73,147.63,23.7069]
[1727801136591,17.06277964,147.73,147.63,16.9334]
[1727801136592,6.7721,147.67,147.63,16.9334]
[1727801136763,0.13907964,147.73,147.6,38.5135]
[1727801136964,6.7737,147.63,147.6,21.5761]
[1727801137185,6.7732,147.64,147.6,21.5761]
[1727801137487,6.7741,147.62,147.6,21.5761]
[1727801137660,6.7737,147.63,147.6,21.5761]
[1727801138088,6.7746,147.61,147.6,15.3891]
[1727801138387,6.7756,147.59,147.55,22.0944]
[1727801138566,16.9326,147.65,147.55,28.8716]
[1727801138759,6.775,147.6,147.55,28.8716]
[1727801138964,6.7746,147.61,147.56,8.13159434]
[1727801139158,20.0,147.68,147.55,22.0944]
[1727801139370,53.8575,147.68,147.56,6.7768]
[1727801139574,6.7747,147.61,147.56,6.7767]
[1727801139782,6.7738,147.63,147.58,6.7759]
[1727801140082,54.1875,147.68,147.55,22.0944]
[1727801140285,54.1875,147.68,147.55,28.8716]
[1727801140286,44.106884,147.67,147.55,28.8716]
[1727801140789,1.29620257,147.71,147.62,6.7741]
[1727801141084,1.29620257,147.71,147.56,70.80816455]
[1727801141085,6.7733,147.64,147.6,16.9369]
[1727801141285,6.7722,147.67,147.62,6.7737]
[1727801141464,6.7722,147.67,147.6,16.9369]
[1727801141663,16.9231,147.73,147.63,6.7735]
[1727801141986,6.7719,147.67,147.62,16.9346]
[1727801142169,16.9231,147.73,147.62,16.9346]
[1727801142368,16.9231,147.73,147.63,6.7734]
[1727801142369,6.7714,147.68,147.63,6.7734]
[1727801142569,6.7724,147.66,147.62,16.9346]
[1727801142877,6.80422954,147.75,147.64,6.7731]
[1727801142878,16.9222,147.74,147.64,6.7731]
[1727801143188,6.77,147.71,147.66,6.7721]
[1727801143393,6.7705,147.7,147.67,1.35413608]
[1727801143561,16.9222,147.74,147.67,1.35413608]
[1727801143765,6.7696,147.72,147.68,6.7713]
[1727801143968,0.8451499,147.75,147.69,1.35399662]
[1727801144174,16.9233,147.73,147.65,22.2653]
[1727801144394,6.7715,147.68,147.65,22.2653]
[1727801144577,34.6863499,147.75,147.65,22.2653]
[1727801144578,6.7723,147.66,147.65,22.2653]
[1727801144767,6.7723,147.66,147.65,16.1457]
[1727801144971,6.7741,147.62,147.61,6.2507]
[1727801145167,16.9304,147.67,147.61,6.2507]
[1727801145380,6.7741,147.62,147.61,6.2507]
[1727801145590,6.775,147.6,147.59,16.052]
[1727801146170,6.7769,147.56,147.55,6.2507]
[1727801146667,6.7764,147.57,147.55,6.2507]
[1727801146869,20.0,147.63,147.56,1.35534277]
[1727801147085,23.776884,147.65,147.55,6.2507]
[1727801147268,20.0,147.59,147.53,15.3424]
[1727801147471,6.7782,147.54,147.5,6.2746]
[1727801147667,20.0,147.59,147.5,6.2746]
[1727801147987,16.9411,147.57,147.47,16.1998]
[1727801148176,16.9411,147.57,147.48,18.30713134]
[1727801148376,20.0,147.59,147.48,16.9514]
[1727801148582,20.0,147.6,147.48,16.9514]
[1727801148778,54.1996,147.63,147.47,16.1998]
[1727801148779,20.0,147.57,147.47,16.1998]
[1727801149088,20.0,147.55,147.47,16.1998]
[1727801149291,23.776884,147.62,147.47,16.1998]
[1727801149595,20.0,147.59,147.47,16.1998]
[1727801149975,23.776884,147.58,147.47,16.1998]
[1727801150184,6.7797,147.5,147.47,16.1998]
[1727801150485,6.7802,147.49,147.47,16.1998]
[1727801150695,6.7787,147.52,147.48,1.35598959]
[1727801150880,16.9447,147.54,147.47,16.1998]
[1727801151194,6.7805,147.48,147.47,16.1998]
[1727801151806,53.8791,147.59,147.44,6.598]
[1727801151807,22.33,147.58,147.44,6.598]
[1727801151972,20.0,147.51,147.44,6.598]
[1727801152577,6.7811,147.47,147.44,6.598]
[1727801152781,6.7796,147.5,147.45,6.7816]
[1727801152990,6.7792,147.51,147.44,6.598]
[1727801153291,6.7799,147.5,147.45,6.7818]
[1727801153490,6.7801,147.49,147.44,13.3803]
[1727801153675,6.7806,147.48,147.44,6.598]
[1727801153871,6.7819,147.45,147.44,6.598]
[1727801154080,20.0,147.54,147.44,6.598]
[1727801154081,6.7804,147.49,147.44,13.3801]
[1727801154290,36.9448,147.54,147.44,6.598]
[1727801154478,6.7802,147.49,147.44,13.3803]
[1727801154678,6.7802,147.49,147.35,2.0]
[1727801154679,6.7824,147.44,147.39,23.7459]
[1727801155185,6.7833,147.42,147.37,6.7852]
[1727801155883,20.0,147.46,147.39,16.9617]
[1727801156094,16.9533,147.47,147.33,80.96818055]
[1727801156273,6.7848,147.39,147.34,6.7869]
[1727801156473,6.7853,147.38,147.33,23.7556]
[1727801156681,6.7856,147.37,147.33,23.7556]
[1727801156894,20.0,147.46,147.32,22.5274]
[1727801156895,6.7861,147.36,147.32,22.5274]
[1727801157401,6.7852,147.38,147.33,6.7873]
[1727801157598,16.961,147.4,147.32,22.5274]
[1727801157782,6.7858,147.37,147.32,29.3152]
[1727801157983,20.0,147.42,147.32,22.5274]
[1727801158193,6.7842,147.4,147.35,6.7865]
[1727801158500,6.7838,147.41,147.36,6.786]
[1727801158798,20.0,147.43,147.33,20.0]
[1727801159001,6.7847,147.39,147.34,6.7869]
[1727801159300,6.7852,147.38,147.33,23.7551]
[1727801159596,6.785,147.39,147.33,23.7551]
[1727801159810,6.7855,147.38,147.33,23.7551]
[1727801159972,20.0,147.43,147.32,22.5274]
[1727801160172,20.0,147.43,147.33,20.0]
[1727801160372,6.7852,147.38,147.34,6.7869]
[1727801160901,6.7841,147.41,147.36,6.7859]
[1727801161102,20.0,147.43,147.34,16.9669]
[1727801161283,20.0,147.43,147.34,23.7539]
[1727801161482,6.7842,147.41,147.36,6.7859]
[1727801161691,6.7847,147.39,147.35,6.7865]
[1727801161886,6.7847,147.39,147.34,23.7538]
[1727801162206,16.9561,147.44,147.34,16.9669]
[1727801162374,16.9513,147.49,147.41,6.7837]
[1727801162581,6.7806,147.48,147.43,6.7827]
[1727801162775,6.7806,147.48,147.4,47.12357295]
[1727801163080,16.9473,147.52,147.42,16.9576]
[1727801163081,6.7811,147.47,147.42,16.9576]
[1727801163288,16.9473,147.52,147.42,16.9576]
[1727801163289,16.9473,147.52,147.44,6.782]
[1727801163503,16.9473,147.52,147.43,1.3563111]
[1727801163504,16.9473,147.52,147.43,6.4237]
[1727801164004,16.9473,147.52,147.44,6.7823]
[1727801164183,33.8877,147.55,147.45,6.7816]
[1727801164184,6.7797,147.5,147.45,6.7816]
[1727801164384,50.8315,147.55,147.44,16.9552]
[1727801164385,16.9438,147.55,147.44,16.9552]
[1727801164596,6.7783,147.53,147.46,16.9531]
[1727801164806,6.7786,147.53,147.46,16.9531]
[1727801165099,6.7791,147.52,147.47,6.7809]
[1727801165682,6.7791,147.52,147.46,16.9531]
[1727801165887,6.7791,147.52,147.47,6.7809]
[1727801166288,9.05152726,147.6,147.48,48.47938763]
[1727801166289,1.15843401,147.6,147.48,48.47938763]
[1727801166475,62.5,147.7,147.48,48.47938763]
[1727801166476,6.7737,147.63,147.58,6.7759]
[1727801166795,4.67528112,147.71,147.55,23.7197]
[1727801166796,6.7741,147.62,147.55,23.7197]
[1727801167105,6.7741,147.62,147.55,16.9428]
[1727801167783,6.7736,147.64,147.56,1.35498505]
[1727801167988,18.08573329,147.69,147.57,23.7161]
[1727801167989,6.7738,147.63,147.57,23.7161]
[1727801168189,1.15763329,147.69,147.55,20.0]
[1727801168388,6.7747,147.61,147.55,20.0]
[1727801168579,16.9343,147.63,147.54,16.9444]
[1727801168780,20.0,147.62,147.54,16.9444]
[1727801169087,6.7764,147.58,147.53,6.3911]
[1727801169294,20.0,147.62,147.53,6.3911]
[1727801169482,26.7745,147.62,147.56,6.7767]
[1727801169683,6.7737,147.63,147.58,6.7758]
[1727801169889,6.7737,147.63,147.54,47.12357295]
[1727801169890,6.7732,147.65,147.6,6.775]
[1727801170409,6.7732,147.65,147.61,16.5628]
[1727801170601,6.7741,147.62,147.61,16.5628]
[1727801170788,6.7754,147.6,147.55,15.5311]
[1727801171104,16.932,147.65,147.55,15.5311]
[1727801171105,6.7757,147.59,147.55,15.5311]
[1727801171307,20.0,147.64,147.55,15.5311]
[1727801171490,21.0616175,147.69,147.55,15.5311]
[1727801171491,6.7764,147.57,147.55,15.5311]
[1727801171696,6.776,147.58,147.55,15.5311]
[1727801172001,20.0,147.62,147.55,15.5311]
[1727801172329,16.9374,147.61,147.55,15.5311]
[1727801172486,6.7769,147.56,147.55,15.5311]
[1727801173299,16.9374,147.61,147.55,15.5311]
[1727801173506,6.776,147.58,147.55,15.5311]
[1727801173810,6.7755,147.6,147.56,1.35535766]
[1727801174110,33.8624,147.66,147.56,6.7764]
[1727801174111,6.775,147.61,147.56,6.7764]
[1727801174282,20.0,147.64,147.55,15.5311]
[1727801174481,6.7758,147.59,147.55,15.5311]
[1727801174682,6.776,147.58,147.55,15.5311]
[1727801174887,16.9349,147.63,147.55,15.5311]
[1727801175183,33.8621,147.66,147.55,15.5311]
[1727801175184,6.7769,147.56,147.55,15.5311]
[1727801175514,6.59476,147.56,147.55,15.5311]
[1727801176208,20.0,147.57,147.49,16.0125]
[1727801176395,16.9389,147.59,147.49,16.0125]
[1727801176702,20.0,147.58,147.5,16.9484]
[1727801176909,50.8075,147.62,147.5,16.9484]
[1727801177114,6.7755,147.59,147.54,6.7778]
[1727801177319,6.7746,147.61,147.56,6.7765]
[1727801177480,6.7754,147.6,147.55,16.9433]
[1727801177686,16.9324,147.65,147.55,16.9433]
[1727801177995,16.9289,147.68,147.58,16.9395]
[1727801178182,55.14968829,147.7,147.56,6.3562]
[1727801178497,6.7746,147.61,147.56,13.1326]
[1727801178707,16.9315,147.66,147.58,15.1108]
[1727801178890,6.7742,147.62,147.58,15.1108]
[1727801179212,16.9315,147.66,147.58,21.8867]
[1727801179506,33.8528,147.7,147.58,15.1108]
[1727801179685,28.22309325,147.69,147.58,15.1108]
[1727801179888,6.7755,147.59,147.58,15.1108]
[1727801180215,54.1926,147.66,147.56,6.3562]
[1727801180391,6.7769,147.56,147.53,15.1108]
[1727801180787,6.7769,147.56,147.53,16.46619514]
[1727801181209,6.7769,147.56,147.53,15.1108]
[1727801181413,6.7774,147.55,147.53,15.1108]
[1727801181701,20.0,147.59,147.53,16.46631249]
[1727801181914,20.0,147.62,147.53,15.1108]
[1727801182084,6.7761,147.58,147.54,1.35525956]
[1727801182283,16.9373,147.61,147.53,15.1108]
[1727801182702,6.7755,147.59,147.53,15.1108]
[1727801183010,20.0,147.62,147.53,15.1108]
[1727801183011,6.7746,147.61,147.56,6.7765]
[1727801183192,6.7749,147.61,147.56,23.718]
[1727801183395,6.7752,147.6,147.56,23.718]
[1727801183589,16.9325,147.65,147.57,6.7763]
[1727801183889,6.7746,147.61,147.56,23.7181]
[1727801184099,16.9349,147.63,147.54,6.7775]
[1727801184301,6.7756,147.59,147.55,6.7773]
[1727801184824,16.9349,147.63,147.55,6.7773]
[1727801184999,6.7755,147.59,147.55,6.7773]
[1727801185191,6.7752,147.6,147.55,6.7773]
[1727801185604,16.9349,147.63,147.56,6.7768]
[1727801185804,20.0,147.65,147.57,1.35497274]
[1727801186022,6.7741,147.63,147.58,8.13056753]
[1727801186220,20.0,147.65,147.57,16.9405]
[1727801186410,6.7747,147.61,147.57,16.9405]
[1727801186622,20.0,147.65,147.55,20.0]
[1727801186623,6.7751,147.6,147.55,20.0]
[1727801186920,6.7747,147.61,147.56,6.7768]
[1727801187131,20.0,147.68,147.57,1.35495891]
[1727801187435,6.7728,147.65,147.61,13.3605]
[1727801187597,6.7728,147.65,147.63,15.9389]
[1727801187798,38.09302346,147.69,147.63,15.9389]
[1727801188008,6.7721,147.67,147.63,15.9389]
[1727801188215,6.7721,147.67,147.64,1.35451256]
[1727801188411,6.7721,147.67,147.63,15.9389]
[1727801188604,6.7723,147.66,147.63,15.9389]
[1727801189221,58.300931,147.72,147.63,15.9389]
[1727801189430,20.21100754,147.72,147.65,6.7723]
[1727801189726,6.77,147.71,147.66,8.12595455]
[1727801190026,17.7662499,147.75,147.64,63.92021941]
[1727801190027,17.7662499,147.75,147.65,6.7727]
[1727801190226,17.7662499,147.75,147.64,16.9325]
[1727801190429,6.77,147.71,147.66,6.7722]
[1727801190610,17.7662499,147.75,147.67,6.7717]
[1727801190807,6.7709,147.69,147.64,26.7729]
[1727801191020,6.7725,147.66,147.63,15.9389]
[1727801191228,16.9242,147.72,147.63,15.9389]
[1727801191905,23.776884,147.71,147.63,15.9389]
[1727801192106,6.7732,147.64,147.63,15.9389]
[1727801192531,16.9291,147.68,147.63,15.9389]
[1727801192713,6.7718,147.67,147.64,1.35445207]